fUST/lending_fUST_20240707
["ID","MTS","AMOUNT","RATE_DAILY","PERIOD"]
[331374732,1720299046691,-391.26756736,0.00040278,4]
[331374734,1720299046700,-3706.70639752,0.000429,15]
[331374736,1720299046714,-58149.99823977,0.000429,15]
[331374738,1720299046728,-1025.8805,0.000429,15]
[331374760,1720299047124,-319.91534022,0.000429,15]
[331374773,1720299094564,209.15804517,0.00016255,2]
[331374775,1720299106001,154.79103211,0.00016255,2]
[331374779,1720299456381,202.14137635,0.00014999,2]
[331374780,1720299456423,2170.41343542,0.00014999,2]
[331374782,1720299519457,158.02405824,0.00014999,2]
[331374783,1720299525684,2099.6884772,0.00014999,2]
[331374784,1720299525845,15414.79924926,0.00014999,2]
[331374785,1720299540638,154.83742071,0.00014999,2]
[331374786,1720299540984,19385.69402743,0.00014999,2]
[331374787,1720299543867,159.98872952,0.00014999,2]
[331374788,1720299559211,-202.94259115,0.00016155,2]
[331374789,1720299559243,-154.83742071,0.00016255,2]
[331374790,1720299559266,-190.9281156,0.0001798,2]
[331374792,1720299591277,-190.9281156,0.00016154,2]
[331374793,1720299591311,-179.85455723,0.00016255,2]
[331374794,1720299591332,-190.9281156,0.00016255,2]
[331374795,1720299591348,-17.12010889,0.00016255,2]
[331374796,1720299591358,-162.73444834,0.00016255,2]
[331374797,1720299591370,-82.43465434,0.00016255,2]
[331374798,1720299668938,200.88921051,0.00014999,2]
[331374799,1720299674789,514.29728027,0.00014999,2]
[331374800,1720299680785,247.60133795,0.00014999,2]
[331374801,1720299686385,205.3687641,0.00014999,2]
[331374802,1720299687200,300.57247778,0.00014999,2]
[331374803,1720299705286,251.71857067,0.00014999,2]
[331374805,1720299708262,374.63942513,0.00014999,2]
[331374806,1720299709697,214.95606653,0.00014999,2]
[331374807,1720299713346,1986.97335839,0.00014999,2]
[331374808,1720299721065,1707.09413431,0.00014999,2]
[331374809,1720299722697,777.12632108,0.00014999,2]
[331374810,1720299725913,949.12073475,0.00015,2]
[331374811,1720299738325,154.89931544,0.00014999,2]
[331374812,1720299743260,459.93,0.00010959,2]
[331374813,1720299745219,1158.13050949,0.00014999,2]
[331374814,1720299745507,426.80021744,0.00014999,2]
[331374815,1720299753375,13144.22535779,0.00014999,2]
[331374816,1720299755005,371.36715798,0.00014999,2]
[331374817,1720299759966,1319.12597811,0.00014999,2]
[331374818,1720299768934,908.54949828,0.00014999,2]
[331374820,1720299802310,725.04696611,0.00014999,2]
[331374822,1720299818600,525.93863422,0.00014999,2]
[331374823,1720299829072,3245.31649808,0.00014999,2]
[331374824,1720299832163,725.04696611,0.00014999,2]
[331374826,1720299869672,777.12632108,0.00014999,2]
[331374827,1720299877885,1986.97335839,0.00014999,2]
[331374828,1720299879933,325.89439543,0.00015,2]
[331374829,1720299883032,374.63942513,0.00014999,2]
[331374830,1720299887809,661.37,0.00010959,2]
[331374832,1720299898351,551.14,0.00010959,2]
[331374833,1720299909345,459.29,0.00010959,2]
[331374835,1720299915031,312.15040345,0.00014999,2]
[331374836,1720299918393,934.12399024,0.00014999,2]
[331374837,1720299919968,382.74,0.00010959,2]
[331374838,1720299932227,318.95,0.00010959,2]
[331374839,1720299941251,265.79,0.00010959,2]
[331374840,1720299943749,566.66102029,0.00014999,2]
[331374841,1720299951575,221.49,0.00010959,2]
[331374842,1720299956142,4711.78002867,0.00014999,2]
[331374843,1720299956382,1974.46480504,0.00014999,2]
[331374844,1720299956978,525.93863422,0.00014999,2]
[331374845,1720299962194,184.58,0.00010959,2]
[331374846,1720299963296,516.79936011,0.00014999,2]
[331374847,1720299964814,3773.14321747,0.00014999,2]
[331374848,1720299967427,171.00512532,0.00014999,2]
[331374849,1720299967542,155.34859445,0.00014999,2]
[331374850,1720299972867,200.88921051,0.00014999,2]
[331374852,1720299983556,153.81,0.00010959,2]
[331374853,1720299987131,525.93863422,0.00014999,2]
[331374854,1720299992101,181.84215111,0.00014999,2]
[331374855,1720299993464,286.83357324,0.00014999,2]
[331374856,1720299994138,769.09,0.00010959,2]
[331374857,1720300005120,725.04696611,0.00014999,2]
[331374858,1720300007033,1489.50426345,0.00014999,2]
[331374860,1720300043151,566.37606527,0.00014999,2]
[331374861,1720300048296,157.43386476,0.00014999,2]
[331374862,1720300050062,174.38535329,0.00014999,2]
[331374863,1720300050428,158.28310136,0.00014999,7]
[331374864,1720300053595,808.0087546,0.00015,2]
[331374865,1720300054637,2126.99307263,0.00014999,2]
[331374866,1720300055399,179.85455723,0.00014999,2]
[331374867,1720300061046,758.295842,0.00015,2]
[331374868,1720300061403,187.6858195,0.00014999,2]
[331374869,1720300064349,777.12632108,0.00014999,2]
[331374870,1720300066044,2421.14931291,0.00015,2]
[331374871,1720300095666,2421.14931291,0.00015,2]
[331374872,1720300115302,2408.714899,0.00014697,2]
[331374873,1720300129718,3217.75457575,0.00014999,2]
[331374874,1720300129776,3277.9319956,0.00014697,2]
[331374875,1720300131260,566.66102029,0.00014999,2]
[331374876,1720300135635,-300.0,0.00015008,2]
[331374877,1720300135678,-300.0,0.00015008,2]
[331374878,1720300135719,-272.68273374,0.00015009,2]
[331374879,1720300135771,-872.68273374,0.00015009,2]
[331374880,1720300135842,-299.32584177,0.00015009,2]
[331374881,1720300140124,386.34085485,0.00014999,2]
[331374882,1720300140367,286.83357324,0.00014999,2]
[331374883,1720300145651,3133.61885044,0.00014999,2]
[331374884,1720300156410,2045.32526605,0.00015,2]
[331374885,1720300188216,155.34859445,0.00014999,2]
[331374886,1720300210546,-300.0,0.00015008,2]
[331374887,1720300210628,-300.0,0.00015008,2]
[331374888,1720300210685,-313.57655992,0.00015009,2]
[331374894,1720300235220,-2349.33745249,0.00015009,2]
[331374895,1720300235234,-7747.51777497,0.00015009,2]
[331374971,1720300239785,-1948.30983897,0.00015009,2]
[331374973,1720300239796,-695.09311923,0.00015147,2]
[331374975,1720300239824,-533.55,0.00015147,2]
[331374978,1720300239862,-1078.23671621,0.00015147,2]
[331374980,1720300239875,-1448.83998616,0.00015147,2]
[331374981,1720300239886,-3000.0,0.00015149,2]
[331374982,1720300239902,-1684.4344187,0.00015149,2]
[331374983,1720300239992,-250.0,0.00015602,2]
[331374984,1720300240004,-491.05706512,0.00015995,2]
[331374985,1720300240019,-12108.74998736,0.00016145,2]
[331374986,1720300240031,-12108.74998733,0.00016148,2]
[331374987,1720300240046,-500.0,0.00016149,2]
[331374988,1720300240059,-529.2710925,0.00016149,2]
[331374989,1720300240070,-500.0,0.00016149,2]
[331374990,1720300240105,-12108.74998733,0.0001615,2]
[331374991,1720300240140,-12108.74998733,0.00016153,2]
[331374992,1720300240152,-466.39433741,0.00016153,2]
[331374993,1720300240169,-12108.74998733,0.00016155,2]
[331374994,1720300240180,-12685.8679704,0.00016234,2]
[331374995,1720300240191,-6342.93398519,0.00016234,2]
[331374996,1720300240202,-12685.8679704,0.00016235,2]
[331374997,1720300240257,-12685.8679704,0.00016244,2]
[331374998,1720300240268,-6342.93398519,0.00016245,2]
[331374999,1720300240286,-100000.0,0.00016254,2]
[331375000,1720300240304,-500.0,0.00016254,2]
[331375001,1720300240338,-538.97355282,0.00016254,2]
[331375002,1720300240349,-320.85841929,0.00016254,2]
[331375003,1720300240360,-500.0,0.00016254,2]
[331375004,1720300240371,-269.54590627,0.00016254,2]
[331375005,1720300240383,-500.0,0.00016254,2]
[331375006,1720300240396,-602.0,0.00016254,2]
[331375007,1720300240407,-500.0,0.00016254,2]
[331375008,1720300240465,-500.0,0.00016254,2]
[331375009,1720300240501,-566.23293793,0.00016254,2]
[331375010,1720300240513,-500.0,0.00016254,2]
[331375011,1720300240524,-500.0,0.00016254,2]
[331375012,1720300240548,-500.0,0.00016254,2]
[331375013,1720300240565,-500.0,0.00016254,2]
[331375014,1720300240582,-500.0,0.00016254,2]
[331375015,1720300240597,-500.0,0.00016254,2]
[331375016,1720300240609,-250.0,0.00016254,2]
[331375017,1720300240630,-500.0,0.00016254,2]
[331375018,1720300240647,-500.0,0.00016254,2]
[331375019,1720300240659,-500.0,0.00016254,2]
[331375020,1720300240673,-500.0,0.00016254,2]
[331375021,1720300240701,-500.0,0.00016254,2]
[331375022,1720300240724,-500.0,0.00016254,2]
[331375023,1720300240750,-57222.12785795,0.00016255,2]
[331375024,1720300240762,-265.41578985,0.00016255,2]
[331375025,1720300240775,-172.42488097,0.00016255,2]
[331375026,1720300240788,-511.39547482,0.00016255,2]
[331375027,1720300240813,-298.44819094,0.00016255,2]
[331375028,1720300240828,-420.0,0.00016425,2]
[331375029,1720300240871,-166.666666,0.00016438,2]
[331375030,1720300240886,-420.0,0.00016508,2]
[331375031,1720300240950,-166.666666,0.00016823,2]
[331375032,1720300240966,-360.15357554,0.0001683,2]
[331375033,1720300240979,-2371.5111559,0.00016891,2]
[331375034,1720300240994,-166.666666,0.00017208,2]
[331375035,1720300241041,-6342.93398519,0.0001751,2]
[331375036,1720300241058,-24900.0,0.0001752,2]
[331375037,1720300241069,-166.666666,0.00017592,2]
[331375038,1720300241082,-500.737699,0.00017629,2]
[331375039,1720300241095,-199.9578956,0.00017644,2]
[331375040,1720300241106,-240.40596766,0.000177,2]
[331375041,1720300241117,-587.0,0.00017976,2]
[331375042,1720300241128,-166.666666,0.00017977,2]
[331375043,1720300241141,-587.0,0.00018159,2]
[331375044,1720300241153,-12685.8679704,0.0001816,2]
[331375045,1720300241195,-167.8629595,0.0001818,2]
[331375046,1720300241206,-155.0158622,0.0001818,2]
[331375047,1720300241217,-2118.3618334,0.0001818,2]
[331375048,1720300241256,-365.31313174,0.00018182,2]
[331375049,1720300241281,-6342.93398519,0.00018293,2]
[331375050,1720300241292,-31764.7630123,0.00018303,2]
[331375051,1720300241303,-166.666666,0.00018362,2]
[331375052,1720300241317,-150.0,0.00018456,2]
[331375053,1720300241340,-150.0,0.00018644,2]
[331375054,1720300241398,-1331.4940123,0.00018705,2]
[331375055,1720300241451,-182.41181182,0.00018738,2]
[331375056,1720300241463,-155.16757676,0.00018798,2]
[331375057,1720300241478,-12685.8679704,0.00018994,2]
[331375058,1720300241522,-812.51622582,0.00019,3]
[331375059,1720300241538,-6342.93398519,0.00019004,2]
[331375060,1720300241555,-160.47824648,0.00019004,2]
[331375061,1720300241566,-250.0,0.00019041,2]
[331375062,1720300241577,-168.846211,0.00019178,2]
[331375063,1720300241610,-440.6815097,0.00019178,4]
[331375064,1720300241629,-352.10804848,0.00019192,2]
[331375065,1720300241642,-150.39157666,0.000193,2]
[331375066,1720300241669,-823.0,0.00019674,2]
[331375067,1720300241680,-823.0,0.00019975,2]
[331375068,1720300241695,-763.32326228,0.0002,2]
[331375069,1720300241710,-435.0,0.0002,2]
[331375070,1720300241727,-1117.11621423,0.0002,2]
[331375072,1720300241741,-427.441142,0.00021096,2]
[331375073,1720300241768,-1152.0,0.00021531,2]
[331375074,1720300241779,-1152.0,0.00021973,2]
[331375077,1720300241801,-688.13904631,0.00022,2]
[331375078,1720300241814,-157.0,0.00022,2]
[331375079,1720300241829,-879.44990711,0.00022389,2]
[331375081,1720300241847,-844.12159152,0.0002243,2]
[331375084,1720300241865,-150.0,0.00022833,2]
[331375086,1720300241878,-3969.2639633,0.00022941,2]
[331375088,1720300241894,-239.99334204,0.00022941,2]
[331375089,1720300241908,-197.16559461,0.00022941,2]
[331375090,1720300241919,-200.0,0.00023,2]
[331375091,1720300241933,-250.0,0.00023381,2]
[331375093,1720300241944,-208.65035491,0.00023453,2]
[331375094,1720300241954,-208.42154374,0.00023515,2]
[331375095,1720300241990,-150.39549383,0.00023515,2]
[331375096,1720300242018,-151.0,0.00023565,7]
[331375097,1720300242043,-151.0,0.00023565,7]
[331375098,1720300242062,-151.0,0.00023565,7]
[331375099,1720300242076,-1613.0,0.00023565,2]
[331375100,1720300242089,-151.0,0.00023565,7]
[331375101,1720300242135,-154.79948781,0.00023966,2]
[331375102,1720300242168,-154.82195475,0.00023968,2]
[331375103,1720300242179,-6342.93398519,0.00024032,3]
[331375104,1720300242193,-30000.0,0.00024042,2]
[331375105,1720300242208,-151.0,0.00024042,7]
[331375106,1720300242235,-151.0,0.00024042,7]
[331375107,1720300242255,-1613.0,0.0002417,2]
[331375108,1720300242266,-150.25347751,0.00024349,2]
[331375109,1720300242278,-151.41147,0.00024867,7]
[331375110,1720300242288,-151.0,0.00024867,7]
[331375111,1720300242301,-151.0,0.00024867,7]
[331375112,1720300242323,-151.0,0.00024867,7]
[331375113,1720300242334,-151.0,0.00024867,7]
[331375114,1720300242348,-151.0,0.00024867,7]
[331375115,1720300242366,-254.03134795,0.00025,2]
[331375116,1720300242380,-301.46108536,0.000253,10]
[331375117,1720300242413,-6342.93398519,0.00025491,3]
[331375118,1720300242424,-51555.96748348,0.00025501,2]
[331375119,1720300242435,-1518.0,0.0002579,2]
[331375120,1720300242450,-174.850305,0.00026111,2]
[331375121,1720300242487,-500.737699,0.00026444,2]
[331375122,1720300242499,-2258.0,0.00026587,2]
[331375123,1720300242510,-427.441142,0.00027195,2]
[331375124,1720300242523,-500.0,0.00027397,2]
[331375125,1720300242538,-500.0,0.00027397,2]
[331375126,1720300242570,-500.0,0.00027397,2]
[331375127,1720300242587,-500.0,0.00027397,2]
[331375128,1720300242598,-500.0,0.00027397,2]
[331375129,1720300242610,-500.0,0.00027397,2]
[331375130,1720300242627,-246.87976379,0.00027397,2]
[331375131,1720300242640,-500.0,0.00027397,2]
[331375132,1720300242650,-500.0,0.00027397,2]
[331375133,1720300242677,-500.0,0.00027397,2]
[331375134,1720300242688,-500.0,0.00027397,2]
[331375135,1720300242743,-500.0,0.00027397,2]
[331375136,1720300242787,-173.580737,0.00027397,120]
[331375137,1720300242802,-175.20533383,0.000274,2]
[331375138,1720300242821,-268.36537859,0.00028,2]
[331375139,1720300242861,-620.17555029,0.00028193,2]
[331375140,1720300242884,-3162.0,0.00029246,2]
[331375141,1720300242933,-620.00877751,0.00029603,2]
[331375142,1720300242965,-572.0307,0.00029735,30]
[331375143,1720300242996,-495.50543718,0.0003,4]
[331375144,1720300243010,-401.62478929,0.0003,30]
[331375145,1720300243029,-155.23189542,0.0003,4]
[331375146,1720300243041,-170.35079036,0.0003,4]
[331375147,1720300243053,-232.29605021,0.0003,4]
[331375148,1720300243074,-185.67573215,0.0003,4]
[331375149,1720300243089,-1143.91485947,0.0003158,2]
[331375150,1720300243100,-1638.0,0.0003217,2]
[331375151,1720300243114,-1395.84,0.00032876,10]
[331375152,1720300243125,-1000.0,0.000331,11]
[331375153,1720300243153,-427.441142,0.00033295,2]
[331375154,1720300243187,-185.52479092,0.00033308,2]
[331375155,1720300243198,-1395.84,0.00034246,10]
[331375156,1720300243209,-474.22653977,0.00035,4]
[331375157,1720300243224,-165.577565,0.00035397,7]
[331375158,1720300243235,-151.0,0.00035397,7]
[331375159,1720300243246,-151.0,0.00035397,7]
[331375160,1720300243285,-386.461099,0.00035397,7]
[331375161,1720300243313,-386.461099,0.00035397,7]
[331375162,1720300243324,-1395.84,0.00035616,10]
[331375163,1720300243337,-400.0,0.00035616,60]
[331375164,1720300243361,-531.56332391,0.00036,30]
[331375165,1720300243372,-554.35445652,0.00036239,4]
[331375166,1720300243408,-1395.84,0.00036986,10]
[331375167,1720300243419,-155.11332947,0.00037,4]
[331375168,1720300243475,-154.82195475,0.00037523,4]
[331375169,1720300243489,-380.59109039,0.00037807,4]
[331375170,1720300243499,-1395.84,0.00038356,10]
[331375171,1720300243510,-400.0,0.00038356,60]
[331375172,1720300243521,-427.441142,0.00039394,2]
[331375173,1720300243532,-1395.84,0.00039726,10]
[331375174,1720300243542,-411.8960375,0.00040015,2]
[331375175,1720300243554,-153.243,0.00040238,2]
[331375176,1720300243597,-154.82195475,0.00040278,4]
[331375177,1720300243618,-418.31609034,0.00040278,4]
[331375178,1720300243628,-500.0,0.00040546,120]
[331375179,1720300243679,-1395.84,0.00041095,10]
[331375180,1720300243692,-150.0,0.000414,47]
[331375181,1720300243716,-1395.84,0.00042465,10]
[331375182,1720300243733,-10165.61,0.00042465,120]
[331375183,1720300243748,-175.1,0.00042471,31]
[331375184,1720300243759,-6342.93398519,0.0004249,5]
[331375185,1720300243785,-2500.0,0.000425,120]
[331375186,1720300243801,-24144.54934159,0.000426,120]
[331375187,1720300243811,-175.1,0.00042615,31]
[331375188,1720300243847,-152.0,0.00042615,31]
[331375189,1720300243858,-5290.06267396,0.00042673,2]
[331375190,1720300243909,-175.1,0.00042758,31]
[331375191,1720300243919,-152.0,0.00042758,31]
[331375192,1720300243937,-12685.8679704,0.0004279,5]
[331375193,1720300243952,-151.0,0.000428,14]
[331375194,1720300243968,-151.0,0.000428,14]
[331375195,1720300243992,-151.0,0.000428,14]
[331375196,1720300244035,-151.0,0.000428,14]
[331375197,1720300244199,-151.0,0.000428,14]
[331375198,1720300244225,-151.0,0.000428,14]
[331375199,1720300244249,-151.0,0.000428,14]
[331375200,1720300244290,-151.0,0.000428,14]
[331375201,1720300244300,-151.0,0.000428,14]
[331375202,1720300244314,-162.46953,0.000428,14]
[331375203,1720300244349,-151.0,0.000428,14]
[331375204,1720300244360,-151.0,0.000428,14]
[331375205,1720300244402,-151.0,0.000428,14]
[331375206,1720300244413,-151.0,0.000428,14]
[331375207,1720300244425,-151.0,0.000428,14]
[331375208,1720300244441,-151.0,0.000428,14]
[331375209,1720300244452,-151.0,0.000428,14]
[331375210,1720300244474,-131008.54993085,0.000429,15]
[331375211,1720300244490,-328.05860326,0.000429,4]
[331375212,1720300244515,-9774.21117732,0.000429,20]
[331375213,1720300244535,-203.74812723,0.000429,3]
[331375214,1720300244569,-151.0,0.000429,14]
[331375215,1720300244604,-151.0,0.000429,14]
[331375216,1720300244621,-151.0,0.000429,14]
[331375217,1720300244632,-625.14049382,0.000429,120]
[331375218,1720300244680,-6408.55272337,0.000429,4]
[331375219,1720300244722,-151.0,0.000429,14]
[331375220,1720300244790,-151.0,0.000429,14]
[331375221,1720300244802,-151.0,0.000429,14]
[331375222,1720300244817,-386.461099,0.000429,14]
[331375223,1720300244856,-386.461099,0.000429,14]
[331375224,1720300244868,-151.0,0.000429,14]
[331375225,1720300244904,-151.0,0.000429,14]
[331375226,1720300244915,-175.1,0.00042902,31]
[331375227,1720300244940,-152.0,0.00042902,31]
[331375228,1720300244961,-1439.70803458,0.00043,120]
[331375229,1720300244972,-2500.0,0.00043,30]
[331375230,1720300244983,-151.0,0.00043,14]
[331375231,1720300245010,-151.0,0.00043,14]
[331375232,1720300245028,-151.0,0.00043,14]
[331375233,1720300245057,-151.0,0.00043,14]
[331375234,1720300245069,-151.0,0.00043,14]
[331375235,1720300245081,-151.0,0.00043,14]
[331375236,1720300245124,-226.847544,0.00043,14]
[331375237,1720300245135,-154.706229,0.00043,14]
[331375238,1720300245148,-233.965974,0.00043025,30]
[331375239,1720300245158,-175.1,0.00043046,31]
[331375240,1720300245177,-152.0,0.00043046,31]
[331375241,1720300245187,-151.0,0.00043123,14]
[331375242,1720300245230,-151.0,0.00043123,14]
[331375243,1720300245241,-310.0,0.00043123,30]
[331375244,1720300245252,-446.822796,0.00043123,30]
[331375245,1720300245264,-151.0,0.00043123,14]
[331375246,1720300245280,-151.0,0.00043123,120]
[331375247,1720300245292,-10165.61,0.0004315,120]
[331375248,1720300245326,-175.1,0.0004319,31]
[331375249,1720300245338,-152.0,0.0004319,31]
[331375250,1720300245353,-150.0,0.00043238,2]
[331375251,1720300245364,-1000.0,0.00043287,90]
[331375252,1720300245374,-306.0,0.00043288,2]
[331375253,1720300245410,-175.1,0.00043334,31]
[331375254,1720300245424,-152.0,0.00043334,31]
[331375255,1720300245434,-175.1,0.00043478,31]
[331375256,1720300245450,-152.0,0.00043478,31]
[331375257,1720300245461,-233.965974,0.00043563,30]
[331375258,1720300245472,-175.1,0.00043622,31]
[331375259,1720300245493,-152.0,0.00043622,31]
[331375260,1720300245521,-175.1,0.00043766,31]
[331375261,1720300245532,-152.0,0.00043766,31]
[331375262,1720300245546,-160.0,0.00043799,30]
[331375263,1720300245563,-160.0,0.00043799,30]
[331375264,1720300245575,-151.0,0.00043799,14]
[331375265,1720300245587,-151.0,0.00043799,14]
[331375266,1720300245609,-151.0,0.00043799,14]
[331375267,1720300245620,-151.0,0.00043799,14]
[331375268,1720300245674,-1000.0,0.000438,30]
[331375269,1720300245708,-151.0,0.000438,14]
[331375270,1720300245720,-306.620279,0.000438,23]
[331375271,1720300245735,-500.0,0.000438,8]
[331375272,1720300245745,-508.00825059,0.000438,8]
[331375273,1720300245761,-160.0,0.00043834,30]
[331375274,1720300245773,-160.0,0.00043834,30]
[331375275,1720300245807,-17930.59830417,0.00043835,31]
[331375276,1720300245856,-503.58463259,0.00043835,120]
[331375277,1720300245867,-500.0,0.00043835,2]
[331375278,1720300245877,-508.8091855,0.00043835,2]
[331375279,1720300245889,-500.0,0.00043835,2]
[331375280,1720300245936,-500.0,0.00043835,120]
[331375281,1720300245974,-500.0,0.00043835,120]
[331375282,1720300246007,-500.0,0.00043835,120]
[331375283,1720300246020,-703.71,0.00043835,120]
[331375284,1720300246031,-500.0,0.00043835,120]
[331375285,1720300246056,-500.0,0.00043835,120]
[331375286,1720300246067,-500.0,0.00043835,120]
[331375287,1720300246077,-195.42579939,0.00043835,120]
[331375288,1720300246101,-500.0,0.00043835,120]
[331375289,1720300246133,-500.0,0.00043835,120]
[331375290,1720300246144,-581.34,0.00043835,120]
[331375291,1720300246154,-500.0,0.00043835,120]
[331375292,1720300246172,-500.0,0.00043835,120]
[331375293,1720300246241,-500.0,0.00043835,120]
[331375294,1720300246261,-500.0,0.00043835,120]
[331375295,1720300246306,-500.0,0.00043835,120]
[331375296,1720300246336,-500.0,0.00043835,120]
[331375297,1720300246353,-782.12,0.00043835,120]
[331375298,1720300246385,-500.0,0.00043835,120]
[331375299,1720300246427,-500.0,0.00043835,120]
[331375302,1720300246454,-508.85,0.00043835,120]
[331375303,1720300246465,-500.0,0.00043835,120]
[331375305,1720300246475,-1040.57,0.00043835,120]
[331375309,1720300246487,-504.73942185,0.00043835,120]
[331375312,1720300246509,-500.0,0.00043835,120]
[331375316,1720300246524,-500.0,0.00043835,120]
[331375330,1720300246585,-500.0,0.00043835,120]
[331375334,1720300246606,-500.0,0.00043835,120]
[331375336,1720300246628,-500.0,0.00043835,120]
[331375339,1720300246639,-500.0,0.00043835,120]
[331375342,1720300246655,-500.0,0.00043835,120]
[331375345,1720300246672,-500.0,0.00043835,120]
[331375348,1720300246700,-500.0,0.00043835,120]
[331375353,1720300246735,-500.0,0.00043835,120]
[331375357,1720300246768,-500.0,0.00043835,120]
[331375359,1720300246797,-500.0,0.00043835,120]
[331375361,1720300246808,-500.0,0.00043835,120]
[331375362,1720300246822,-500.0,0.00043835,120]
[331375365,1720300246852,-500.0,0.00043835,120]
[331375367,1720300246862,-500.0,0.00043835,2]
[331375370,1720300246873,-500.0,0.00043835,120]
[331375373,1720300246893,-500.0,0.00043835,120]
[331375375,1720300246903,-500.0,0.00043835,120]
[331375377,1720300246914,-500.0,0.00043835,120]
[331375378,1720300246949,-330.22601645,0.00043835,120]
[331375379,1720300246979,-2076.67,0.00043835,120]
[331375380,1720300246998,-500.74229188,0.00043835,120]
[331375381,1720300247050,-500.0,0.00043835,120]
[331375382,1720300247060,-500.0,0.00043835,120]
[331375383,1720300247073,-500.0,0.00043835,120]
[331375384,1720300247084,-500.0,0.00043835,120]
[331375385,1720300247097,-500.0,0.00043835,120]
[331375386,1720300247109,-500.0,0.00043835,120]
[331375387,1720300247124,-500.0,0.00043835,120]
[331375388,1720300247164,-500.0,0.00043835,120]
[331375389,1720300247177,-500.0,0.00043835,120]
[331375390,1720300247195,-500.0,0.00043835,120]
[331375391,1720300247259,-500.0,0.00043835,120]
[331375392,1720300247286,-500.0,0.00043835,120]
[331375393,1720300247296,-500.0,0.00043835,120]
[331375394,1720300247309,-500.0,0.00043835,120]
[331375395,1720300247332,-500.0,0.00043835,120]
[331375396,1720300247362,-500.0,0.00043835,120]
[331375397,1720300247385,-500.0,0.00043835,120]
[331375398,1720300247395,-500.0,0.00043835,120]
[331375399,1720300247437,-500.0,0.00043835,120]
[331375400,1720300247449,-500.0,0.00043835,120]
[331375401,1720300247469,-500.0,0.00043835,120]
[331375402,1720300247528,-500.0,0.00043835,120]
[331375403,1720300247545,-500.0,0.00043835,120]
[331375404,1720300247563,-500.0,0.00043835,120]
[331375405,1720300247574,-500.0,0.00043835,120]
[331375406,1720300247593,-500.0,0.00043835,120]
[331375407,1720300247610,-500.0,0.00043835,120]
[331375408,1720300247620,-500.0,0.00043835,120]
[331375409,1720300247641,-500.0,0.00043835,120]
[331375410,1720300247652,-500.0,0.00043835,120]
[331375411,1720300247662,-500.0,0.00043835,120]
[331375412,1720300247723,-502.23795999,0.00043835,120]
[331375413,1720300247736,-500.0,0.00043835,120]
[331375414,1720300247749,-500.0,0.00043835,120]
[331375415,1720300247768,-500.0,0.00043835,120]
[331375416,1720300247780,-500.0,0.00043835,120]
[331375417,1720300247793,-500.0,0.00043835,120]
[331375418,1720300247804,-500.0,0.00043835,120]
[331375419,1720300247814,-500.0,0.00043835,120]
[331375420,1720300247827,-500.0,0.00043835,120]
[331375421,1720300247842,-500.0,0.00043835,120]
[331375422,1720300247857,-500.51964792,0.00043835,120]
[331375423,1720300247879,-501.23987911,0.00043835,120]
[331375424,1720300247915,-500.0,0.00043835,120]
[331375425,1720300247947,-500.0,0.00043835,120]
[331375426,1720300247976,-500.0,0.00043835,120]
[331375427,1720300248006,-500.0,0.00043835,120]
[331375428,1720300248041,-500.0,0.00043835,120]
[331375429,1720300248076,-500.22824643,0.00043835,120]